[Event "*** Titled Tuesday Blitz"]
[Site "Chess.com"]
[Date "2018.08.07"]
[Round "10"]
[White "chess4life23"]
[Black "Vuk2000"]
[Result "0-1"]
[WhiteElo "2289"]
[BlackElo "2664"]
[TimeControl "180+2"]
[EndTime "15:19:04 PDT"]
[Termination "Vuk2000 won by resignation"]

1. d4 {[%clk 0:03:01.9]} 1... e6 {[%clk 0:03:00.4]} 2. Nf3 {[%clk 0:03:01.2]}
2... Nf6 {[%clk 0:03:01.8]} 3. c4 {[%clk 0:03:00.5]} 3... b6 {[%clk 0:03:03.1]}
4. a3 {[%clk 0:02:59.3]} 4... Bb7 {[%clk 0:03:04.2]} 5. Nc3 {[%clk 0:03:00.7]}
5... d5 {[%clk 0:03:03.3]} 6. cxd5 {[%clk 0:03:02]} 6... exd5 {[%clk 0:03:04.4]}
7. Bg5 {[%clk 0:03:01.7]} 7... Be7 {[%clk 0:03:05.8]} 8. Rc1 {[%clk 0:03:01.5]}
8... O-O {[%clk 0:03:06.1]} 9. e3 {[%clk 0:03:02.1]} 9... Ne4 {[%clk 0:02:57]}
10. Bf4 {[%clk 0:02:48.9]} 10... Nxc3 {[%clk 0:02:46.6]} 11. Rxc3 {[%clk
0:02:48]} 11... c5 {[%clk 0:02:47.9]} 12. dxc5 {[%clk 0:02:27.9]} 12... bxc5
{[%clk 0:02:48.4]} 13. Be2 {[%clk 0:02:23.9]} 13... Nd7 {[%clk 0:02:48.4]} 14.
O-O {[%clk 0:02:13.8]} 14... Bf6 {[%clk 0:02:42.7]} 15. Rc2 {[%clk 0:02:12.3]}
15... Bc6 {[%clk 0:02:36.8]} 16. Rd2 {[%clk 0:01:55.2]} 16... Qe7 {[%clk
0:02:32.8]} 17. Qc2 {[%clk 0:01:50.5]} 17... Nb6 {[%clk 0:02:32.1]} 18. Rc1
{[%clk 0:01:46.2]} 18... c4 {[%clk 0:02:30.8]} 19. Nd4 {[%clk 0:01:38]} 19...
Bd7 {[%clk 0:02:24.4]} 20. Bf3 {[%clk 0:01:37.1]} 20... g6 {[%clk 0:02:21.9]}
21. Qd1 {[%clk 0:01:33.6]} 21... Ba4 {[%clk 0:02:14]} 22. Qe1 {[%clk 0:01:32.7]}
22... Rfe8 {[%clk 0:02:11.7]} 23. h3 {[%clk 0:01:27.9]} 23... Rac8 {[%clk
0:02:10]} 24. Bd1 {[%clk 0:01:24.2]} 24... Bd7 {[%clk 0:02:08.2]} 25. Bg4 {[%clk
0:01:22.4]} 25... Bxg4 {[%clk 0:02:07]} 26. hxg4 {[%clk 0:01:23.8]} 26... c3
{[%clk 0:02:01.9]} 27. Rxc3 {[%clk 0:01:16.2]} 27... Rxc3 {[%clk 0:02:01.6]} 28.
bxc3 {[%clk 0:01:18.1]} 28... Nc4 {[%clk 0:02:02.8]} 29. Ra2 {[%clk 0:01:12.3]}
29... Qe4 {[%clk 0:01:53.9]} 30. Qd1 {[%clk 0:01:01.2]} 30... Rc8 {[%clk
0:01:39.6]} 31. Ra1 {[%clk 0:00:48.9]} 31... Nb2 {[%clk 0:01:35.4]} 32. Qb3
{[%clk 0:00:48]} 32... Nd3 {[%clk 0:01:35.5]} 33. f3 {[%clk 0:00:47.5]} 33...
Qe7 {[%clk 0:01:32]} 34. Kh2 {[%clk 0:00:25.7]} 34... Nxf4 {[%clk 0:01:23.4]}
35. exf4 {[%clk 0:00:27.6]} 35... Qe3 {[%clk 0:01:24.4]} 36. Kg3 {[%clk
0:00:19.7]} 36... Bxd4 {[%clk 0:01:24.6]} 37. Qb7 {[%clk 0:00:16.1]} 37... Qxc3
{[%clk 0:01:24.8]} 38. Qxd5 {[%clk 0:00:16.4]} 38... Qxa1 {[%clk 0:01:24.4]} 0-1

[Event "*** Titled Tuesday Blitz"]
[Site "Chess.com"]
[Date "2018.08.07"]
[Round "10"]
[White "dmosesov"]
[Black "francogreek"]
[Result "1/2-1/2"]
[WhiteElo "2266"]
[BlackElo "2417"]
[TimeControl "180+2"]
[EndTime "15:19:22 PDT"]
[Termination "Game drawn by agreement"]

1. e4 {[%clk 0:03:01.9]} 1... c5 {[%clk 0:03:00.9]} 2. Nf3 {[%clk 0:03:02.3]}
2... d6 {[%clk 0:03:02.1]} 3. Bb5+ {[%clk 0:03:02.1]} 3... Nc6 {[%clk
0:03:02.8]} 4. O-O {[%clk 0:03:01.7]} 4... Bd7 {[%clk 0:03:01.6]} 5. Re1 {[%clk
0:03:01.7]} 5... Nf6 {[%clk 0:03:02.4]} 6. c3 {[%clk 0:03:02.2]} 6... a6 {[%clk
0:03:02.7]} 7. Ba4 {[%clk 0:03:03.3]} 7... b5 {[%clk 0:03:01.9]} 8. Bc2 {[%clk
0:03:04.3]} 8... e5 {[%clk 0:03:03.1]} 9. d4 {[%clk 0:03:02.2]} 9... cxd4 {[%clk
0:03:03.1]} 10. cxd4 {[%clk 0:03:04.1]} 10... Bg4 {[%clk 0:03:04.3]} 11. dxe5
{[%clk 0:02:39.2]} 11... Nxe5 {[%clk 0:03:02]} 12. Nbd2 {[%clk 0:02:39.7]} 12...
Be7 {[%clk 0:02:50.3]} 13. h3 {[%clk 0:02:39.4]} 13... Bh5 {[%clk 0:02:51.4]}
14. Qe2 {[%clk 0:02:30.2]} 14... Rc8 {[%clk 0:02:36.6]} 15. Bb3 {[%clk
0:02:28.7]} 15... O-O {[%clk 0:02:36.6]} 16. Qe3 {[%clk 0:02:29.6]} 16... Nxf3+
{[%clk 0:02:33.2]} 17. Nxf3 {[%clk 0:02:31.5]} 17... Nd7 {[%clk 0:02:28.3]} 18.
Nd4 {[%clk 0:02:28.9]} 18... Bf6 {[%clk 0:02:26.3]} 19. Nf5 {[%clk 0:02:27.7]}
19... Ne5 {[%clk 0:02:13.5]} 20. Qg3 {[%clk 0:02:19.5]} 20... Bg6 {[%clk
0:02:14]} 21. Bf4 {[%clk 0:02:10.3]} 21... Qb6 {[%clk 0:02:12.4]} 22. Rad1
{[%clk 0:02:05.1]} 22... Rfd8 {[%clk 0:02:04.1]} 23. Nxd6 {[%clk 0:01:49.8]}
23... Rxd6 {[%clk 0:02:00.3]} 24. Bxe5 {[%clk 0:01:51]} 24... Rxd1 {[%clk
0:02:01.2]} 25. Rxd1 {[%clk 0:01:51.4]} 25... Bxe4 {[%clk 0:02:02.3]} 26. Rd7
{[%clk 0:01:36.2]} 26... Bg6 {[%clk 0:01:55.5]} 27. Rd6 {[%clk 0:01:21.9]} 27...
Bxe5 {[%clk 0:01:45.4]} 28. Qxe5 {[%clk 0:01:02.7]} 28... Qc7 {[%clk 0:01:43.2]}
29. Qd4 {[%clk 0:00:57.8]} 29... Re8 {[%clk 0:01:32.7]} 30. Qd2 {[%clk
0:00:47.1]} 30... a5 {[%clk 0:01:23.9]} 31. Rd7 {[%clk 0:00:38.9]} 31... Qb8
{[%clk 0:00:44.4]} 32. Qxa5 {[%clk 0:00:30.3]} 32... Qc8 {[%clk 0:00:45.4]} 33.
Qd2 {[%clk 0:00:27.8]} 33... Qc6 {[%clk 0:00:42.8]} 1/2-1/2

[Event "*** Titled Tuesday Blitz"]
[Site "Chess.com"]
[Date "2018.08.07"]
[Round "10"]
[White "vpantev"]
[Black "Supernotar"]
[Result "0-1"]
[WhiteElo "2520"]
[BlackElo "2486"]
[TimeControl "180+2"]
[EndTime "15:19:30 PDT"]
[Termination "Supernotar won by resignation"]

1. d4 {[%clk 0:02:57]} 1... d5 {[%clk 0:03:00.2]} 2. Bf4 {[%clk 0:02:57.4]} 2...
Nf6 {[%clk 0:02:57.1]} 3. e3 {[%clk 0:02:58.5]} 3... e6 {[%clk 0:02:58.4]} 4.
Nf3 {[%clk 0:02:59.1]} 4... c5 {[%clk 0:02:59.6]} 5. c3 {[%clk 0:02:58.1]} 5...
Nc6 {[%clk 0:03:00.5]} 6. Bd3 {[%clk 0:02:56]} 6... Bd6 {[%clk 0:02:57.6]} 7.
Bg3 {[%clk 0:02:57.1]} 7... Qe7 {[%clk 0:02:54.3]} 8. Ne5 {[%clk 0:02:52]} 8...
O-O {[%clk 0:02:52]} 9. Nd2 {[%clk 0:02:50]} 9... Nd7 {[%clk 0:02:50.4]} 10. f4
{[%clk 0:02:48.1]} 10... f6 {[%clk 0:02:47]} 11. Qh5 {[%clk 0:02:23.1]} 11... g6
{[%clk 0:02:33.1]} 12. Nxc6 {[%clk 0:02:12]} 12... bxc6 {[%clk 0:02:33.3]} 13.
Qh6 {[%clk 0:02:10]} 13... cxd4 {[%clk 0:02:30.4]} 14. exd4 {[%clk 0:02:07.8]}
14... e5 {[%clk 0:02:26.2]} 15. fxe5 {[%clk 0:02:01.6]} 15... fxe5 {[%clk
0:02:26.3]} 16. dxe5 {[%clk 0:01:55.3]} 16... Nxe5 {[%clk 0:02:23.4]} 17. Bxe5
{[%clk 0:01:42]} 17... Qxe5+ {[%clk 0:02:22.2]} 18. Kd1 {[%clk 0:01:43.1]} 18...
Bf5 {[%clk 0:02:00.6]} 19. Re1 {[%clk 0:01:29.3]} 19... Qxh2 {[%clk 0:01:43.8]}
20. Qxh2 {[%clk 0:01:27.7]} 20... Bxh2 {[%clk 0:01:44.4]} 21. Bxf5 {[%clk
0:01:28.4]} 21... Rxf5 {[%clk 0:01:44.6]} 22. Re2 {[%clk 0:01:22.1]} 22... Raf8
{[%clk 0:01:39]} 23. Nf3 {[%clk 0:01:22.4]} 23... Bg3 {[%clk 0:01:34.6]} 24. Kc2
{[%clk 0:01:23.1]} 24... R5f6 {[%clk 0:01:33.2]} 25. Rd1 {[%clk 0:01:18.7]}
25... Kg7 {[%clk 0:01:31.8]} 26. c4 {[%clk 0:01:19.9]} 26... Rd8 {[%clk
0:01:07.6]} 27. Nd4 {[%clk 0:01:16.8]} 27... Kf7 {[%clk 0:01:02.2]} 28. c5
{[%clk 0:01:07.1]} 28... Re8 {[%clk 0:00:53.8]} 29. Rxe8 {[%clk 0:01:03.7]}
29... Kxe8 {[%clk 0:00:54.6]} 30. Rd3 {[%clk 0:01:04.3]} 30... Rf2+ {[%clk
0:00:46.1]} 31. Kb3 {[%clk 0:00:58]} 31... Rxg2 {[%clk 0:00:43]} 32. Nxc6 {[%clk
0:00:58.2]} 32... h5 {[%clk 0:00:42.9]} 33. Rxd5 {[%clk 0:00:55.1]} 33... h4
{[%clk 0:00:43.9]} 34. Rd8+ {[%clk 0:00:50.6]} 34... Kf7 {[%clk 0:00:44.3]} 35.
Rh8 {[%clk 0:00:51.4]} 35... Kg7 {[%clk 0:00:45.3]} 36. Rd8 {[%clk 0:00:48.3]}
36... h3 {[%clk 0:00:45.7]} 37. Rd7+ {[%clk 0:00:42.8]} 37... Kh6 {[%clk
0:00:44]} 38. Ne7 {[%clk 0:00:43.7]} 38... h2 {[%clk 0:00:39.9]} 39. Ng8+ {[%clk
0:00:44.8]} 39... Kg5 {[%clk 0:00:38.6]} 0-1

[Event "*** Titled Tuesday Blitz"]
[Site "Chess.com"]
[Date "2018.08.07"]
[Round "10"]
[White "ChessicallyInclined"]
[Black "Maili15"]
[Result "1-0"]
[WhiteElo "2352"]
[BlackElo "2253"]
[TimeControl "180+2"]
[EndTime "15:19:59 PDT"]
[Termination "ChessicallyInclined won by resignation"]

1. e4 {[%clk 0:03:01.9]} 1... c5 {[%clk 0:03:01.1]} 2. Nf3 {[%clk 0:03:01.4]}
2... e6 {[%clk 0:03:02.2]} 3. d4 {[%clk 0:03:02.5]} 3... cxd4 {[%clk 0:03:04.1]}
4. Nxd4 {[%clk 0:03:03.5]} 4... a6 {[%clk 0:03:05.5]} 5. c4 {[%clk 0:03:03.5]}
5... Nf6 {[%clk 0:03:05.9]} 6. Nc3 {[%clk 0:03:04.8]} 6... Qc7 {[%clk
0:03:06.7]} 7. Be2 {[%clk 0:03:02.3]} 7... Bb4 {[%clk 0:03:07]} 8. Qd3 {[%clk
0:02:59.2]} 8... Nc6 {[%clk 0:03:06.7]} 9. O-O {[%clk 0:02:38]} 9... Bxc3 {[%clk
0:02:48.6]} 10. bxc3 {[%clk 0:02:38]} 10... d6 {[%clk 0:02:22.6]} 11. Qg3 {[%clk
0:02:33.1]} 11... g6 {[%clk 0:02:04.9]} 12. Ba3 {[%clk 0:02:32.3]} 12... Nxe4
{[%clk 0:02:01.7]} 13. Qf4 {[%clk 0:02:28.5]} 13... f5 {[%clk 0:01:46.7]} 14.
Qe3 {[%clk 0:01:52.9]} 14... Kf7 {[%clk 0:00:52.5]} 15. Rad1 {[%clk 0:01:40.7]}
15... Rd8 {[%clk 0:00:36.8]} 16. Qh6 {[%clk 0:01:40.7]} 16... Kg8 {[%clk
0:00:33.3]} 17. Bf3 {[%clk 0:01:36.1]} 17... Nf6 {[%clk 0:00:31.4]} 18. Nxc6
{[%clk 0:01:34.1]} 18... bxc6 {[%clk 0:00:33.2]} 19. Qg5 {[%clk 0:01:32.6]}
19... Kg7 {[%clk 0:00:32.9]} 20. Rfe1 {[%clk 0:01:30.4]} 20... e5 {[%clk
0:00:22.2]} 21. c5 {[%clk 0:01:19.7]} 21... d5 {[%clk 0:00:22.7]} 22. Bc1 {[%clk
0:01:13.6]} 22... e4 {[%clk 0:00:17.7]} 23. Qh6+ {[%clk 0:01:08.9]} 23... Kg8
{[%clk 0:00:18.3]} 24. Bg5 {[%clk 0:01:09.6]} 24... Qf7 {[%clk 0:00:17.6]} 25.
Be2 {[%clk 0:01:03.7]} 25... Be6 {[%clk 0:00:18.3]} 26. Qh4 {[%clk 0:01:04.6]}
26... Rf8 {[%clk 0:00:18.7]} 27. Rb1 {[%clk 0:01:03.4]} 27... Nd7 {[%clk
0:00:16]} 28. Rb7 {[%clk 0:01:03.2]} 28... Rfb8 {[%clk 0:00:14.8]} 29. Rc7
{[%clk 0:01:03.5]} 29... Qe8 {[%clk 0:00:12.3]} 30. Rxc6 {[%clk 0:00:59.8]}
30... Rc8 {[%clk 0:00:11.1]} 31. Rxc8 {[%clk 0:00:55.4]} 31... Rxc8 {[%clk
0:00:13]} 32. Bxa6 {[%clk 0:00:54.1]} 32... Rxc5 {[%clk 0:00:14]} 33. Be3 {[%clk
0:00:52.6]} 33... Ra5 {[%clk 0:00:14.1]} 34. Bf1 {[%clk 0:00:50.9]} 34... Rxa2
{[%clk 0:00:13.8]} 35. Bd4 {[%clk 0:00:52.5]} 35... Nb8 {[%clk 0:00:07.4]} 36.
Qf6 {[%clk 0:00:50.9]} 36... Qd7 {[%clk 0:00:02.7]} 37. Qh8+ {[%clk 0:00:51.7]}
37... Kf7 {[%clk 0:00:03.6]} 38. Qxh7+ {[%clk 0:00:52.8]} 38... Ke8 {[%clk
0:00:04.2]} 39. Qh8+ {[%clk 0:00:51.9]} 39... Ke7 {[%clk 0:00:04.4]} 40. Bf6+
{[%clk 0:00:51.5]} 40... Kd6 {[%clk 0:00:03.1]} 41. Qxb8+ {[%clk 0:00:52.4]}
41... Kc6 {[%clk 0:00:02.2]} 42. Bb5+ {[%clk 0:00:52.9]} 1-0

[Event "*** Titled Tuesday Blitz"]
[Site "Chess.com"]
[Date "2018.08.07"]
[Round "10"]
[White "David_Klein"]
[Black "Martins-BR"]
[Result "1-0"]
[WhiteElo "2492"]
[BlackElo "2317"]
[TimeControl "180+2"]
[EndTime "15:20:03 PDT"]
[Termination "David_Klein won by resignation"]

1. Nf3 {[%clk 0:03:01.9]} 1... f5 {[%clk 0:02:59.6]} 2. g4 {[%clk 0:02:59.8]}
2... fxg4 {[%clk 0:02:58.8]} 3. Ne5 {[%clk 0:03:00.8]} 3... d6 {[%clk
0:02:54.1]} 4. Nc4 {[%clk 0:03:01.8]} 4... Nf6 {[%clk 0:02:51.2]} 5. Nc3 {[%clk
0:03:02.1]} 5... e5 {[%clk 0:02:51.2]} 6. d4 {[%clk 0:03:02.2]} 6... exd4 {[%clk
0:02:46.7]} 7. Qxd4 {[%clk 0:03:02.5]} 7... Nc6 {[%clk 0:02:47.6]} 8. Qd2 {[%clk
0:03:02]} 8... Be6 {[%clk 0:02:45.1]} 9. Ne3 {[%clk 0:03:00.3]} 9... Qd7 {[%clk
0:02:43.6]} 10. Bg2 {[%clk 0:02:56.2]} 10... O-O-O {[%clk 0:02:43.5]} 11. b4
{[%clk 0:02:56]} 11... Kb8 {[%clk 0:02:37.7]} 12. b5 {[%clk 0:02:56.5]} 12...
Ne5 {[%clk 0:02:38.1]} 13. Bb2 {[%clk 0:02:52.6]} 13... g6 {[%clk 0:02:32.8]}
14. a4 {[%clk 0:02:52.5]} 14... Bg7 {[%clk 0:02:32.9]} 15. a5 {[%clk 0:02:53.8]}
15... Nc4 {[%clk 0:02:27.2]} 16. Nxc4 {[%clk 0:02:54]} 16... Bxc4 {[%clk
0:02:27.9]} 17. b6 {[%clk 0:02:55.4]} 17... cxb6 {[%clk 0:02:25.3]} 18. axb6
{[%clk 0:02:55.4]} 18... a6 {[%clk 0:02:26.1]} 19. Qd4 {[%clk 0:02:48.9]} 19...
d5 {[%clk 0:02:19.2]} 20. Qf4+ {[%clk 0:02:22.6]} 20... Ka8 {[%clk 0:02:16]} 21.
h3 {[%clk 0:01:55.3]} 21... gxh3 {[%clk 0:01:59.3]} 22. Rxh3 {[%clk 0:01:54]}
22... Qd6 {[%clk 0:01:55]} 23. Rh4 {[%clk 0:01:18.2]} 23... Qxb6 {[%clk
0:01:49.6]} 24. Na4 {[%clk 0:01:08.6]} 24... Qd6 {[%clk 0:01:33.7]} 25. Be5
{[%clk 0:00:57.8]} 25... Qb4+ {[%clk 0:01:31.4]} 26. c3 {[%clk 0:00:57.1]} 26...
Qf8 {[%clk 0:01:29.2]} 27. Nb6+ {[%clk 0:00:53.1]} 27... Ka7 {[%clk 0:01:29.7]}
28. Qd4 {[%clk 0:00:45.5]} 28... Rd6 {[%clk 0:01:16.1]} 29. Nxc4+ {[%clk
0:00:28.2]} 29... Ka8 {[%clk 0:01:08.9]} 30. Nxd6 {[%clk 0:00:28.5]} 30... Qe7
{[%clk 0:00:58.6]} 31. Rxa6+ {[%clk 0:00:27.5]} 31... bxa6 {[%clk 0:00:57]} 32.
Bxd5+ {[%clk 0:00:29]} 32... Nxd5 {[%clk 0:00:56.1]} 33. Qxd5+ {[%clk
0:00:30.9]} 33... Ka7 {[%clk 0:00:56.9]} 34. Qc5+ {[%clk 0:00:25.8]} 34... Ka8
{[%clk 0:00:55.2]} 35. Qc6+ {[%clk 0:00:26.8]} 35... Ka7 {[%clk 0:00:56.3]} 36.
Ra4 {[%clk 0:00:19.3]} 1-0

[Event "*** Titled Tuesday Blitz"]
[Site "Chess.com"]
[Date "2018.08.07"]
[Round "10"]
[White "BasilSmash"]
[Black "hypert"]
[Result "1-0"]
[WhiteElo "2434"]
[BlackElo "2351"]
[TimeControl "180+2"]
[EndTime "15:20:06 PDT"]
[Termination "BasilSmash won by resignation"]

1. d4 {[%clk 0:01:29.3]} 1... Nf6 {[%clk 0:02:59.2]} 2. Nf3 {[%clk 0:01:29.7]}
2... e6 {[%clk 0:03:00.7]} 3. Bf4 {[%clk 0:01:30]} 3... d5 {[%clk 0:03:00.5]} 4.
e3 {[%clk 0:01:30.7]} 4... c5 {[%clk 0:03:01.1]} 5. c3 {[%clk 0:01:31.7]} 5...
Nc6 {[%clk 0:03:01.9]} 6. Nbd2 {[%clk 0:01:32.5]} 6... Qb6 {[%clk 0:03:01.8]} 7.
Qb3 {[%clk 0:01:30]} 7... c4 {[%clk 0:03:02.8]} 8. Qxb6 {[%clk 0:01:19.6]} 8...
axb6 {[%clk 0:03:04.7]} 9. a3 {[%clk 0:01:20.8]} 9... b5 {[%clk 0:03:06.1]} 10.
Rc1 {[%clk 0:01:21.6]} 10... Nh5 {[%clk 0:03:05.1]} 11. Bg5 {[%clk 0:01:07.9]}
11... h6 {[%clk 0:03:05.2]} 12. Bh4 {[%clk 0:01:09]} 12... g5 {[%clk 0:03:06.2]}
13. Bg3 {[%clk 0:01:10.2]} 13... Nxg3 {[%clk 0:03:04.2]} 14. hxg3 {[%clk
0:01:12.1]} 14... Bg7 {[%clk 0:03:04.7]} 15. e4 {[%clk 0:01:13.3]} 15... O-O
{[%clk 0:02:54.6]} 16. Be2 {[%clk 0:01:12.6]} 16... f5 {[%clk 0:02:54.9]} 17. e5
{[%clk 0:01:09.7]} 17... Bd7 {[%clk 0:02:55.3]} 18. Bd1 {[%clk 0:01:10.3]} 18...
Be8 {[%clk 0:02:55.8]} 19. Bc2 {[%clk 0:01:11.3]} 19... Bg6 {[%clk 0:02:47.2]}
20. Nf1 {[%clk 0:01:11.6]} 20... Ne7 {[%clk 0:02:47.9]} 21. Ne3 {[%clk
0:01:11.8]} 21... f4 {[%clk 0:02:38.9]} 22. gxf4 {[%clk 0:01:09.5]} 22... Rxf4
{[%clk 0:02:30.7]} 23. Ke2 {[%clk 0:01:03.1]} 23... Raf8 {[%clk 0:02:29.4]} 24.
Bxg6 {[%clk 0:00:55.7]} 24... Nxg6 {[%clk 0:02:28]} 25. Rcf1 {[%clk 0:00:57.6]}
25... Re4 {[%clk 0:02:14.3]} 26. g3 {[%clk 0:00:55.8]} 26... Nf4+ {[%clk
0:01:47.4]} 27. gxf4 {[%clk 0:00:54.4]} 27... gxf4 {[%clk 0:01:49.3]} 28. Rfg1
{[%clk 0:00:54.3]} 28... fxe3 {[%clk 0:01:47.4]} 29. fxe3 {[%clk 0:00:56.2]}
29... h5 {[%clk 0:01:15.1]} 30. Rxh5 {[%clk 0:00:53.7]} 30... Rf5 {[%clk
0:01:16.2]} 31. Rh3 {[%clk 0:00:29.2]} 31... Kf7 {[%clk 0:01:12.5]} 32. Ng5+
{[%clk 0:00:25.5]} 32... Rxg5 {[%clk 0:00:47]} 33. Rxg5 {[%clk 0:00:27.4]} 33...
Bf8 {[%clk 0:00:47.6]} 34. Rh7+ {[%clk 0:00:26]} 34... Ke8 {[%clk 0:00:48.6]}
35. Rg8 {[%clk 0:00:26.1]} 35... b4 {[%clk 0:00:43.4]} 36. axb4 {[%clk
0:00:24.3]} 36... b5 {[%clk 0:00:44.2]} 37. Kf3 {[%clk 0:00:22.3]} 37... Rh4
{[%clk 0:00:25.3]} 38. Rxh4 {[%clk 0:00:17.9]} 38... Kf7 {[%clk 0:00:25.8]} 39.
Rxf8+ {[%clk 0:00:17.6]} 39... Kxf8 {[%clk 0:00:26.5]} 40. Rh7 {[%clk
0:00:18.5]} 1-0

[Event "*** Titled Tuesday Blitz"]
[Site "Chess.com"]
[Date "2018.08.07"]
[Round "10"]
[White "W_Amadeus"]
[Black "NemtsevIgor"]
[Result "1-0"]
[WhiteElo "2570"]
[BlackElo "2391"]
[TimeControl "180+2"]
[EndTime "15:20:12 PDT"]
[Termination "W_Amadeus won by resignation"]

1. d4 {[%clk 0:03:01.9]} 1... c6 {[%clk 0:02:59.2]} 2. c4 {[%clk 0:03:02]} 2...
d6 {[%clk 0:03:00.1]} 3. Nc3 {[%clk 0:03:01.2]} 3... Nd7 {[%clk 0:03:01.2]} 4.
e4 {[%clk 0:03:00.2]} 4... h6 {[%clk 0:03:01.1]} 5. Bd3 {[%clk 0:02:58.5]} 5...
g5 {[%clk 0:03:01.3]} 6. Nge2 {[%clk 0:02:59.3]} 6... Bg7 {[%clk 0:03:00.4]} 7.
O-O {[%clk 0:03:00.2]} 7... Nf8 {[%clk 0:03:00.7]} 8. f4 {[%clk 0:02:44.2]} 8...
Qb6 {[%clk 0:02:44]} 9. Kh1 {[%clk 0:02:37.6]} 9... gxf4 {[%clk 0:02:38.2]} 10.
Bxf4 {[%clk 0:02:30.6]} 10... Ne6 {[%clk 0:02:36.5]} 11. Be3 {[%clk 0:02:25.2]}
11... Qa5 {[%clk 0:02:24.3]} 12. d5 {[%clk 0:01:44.6]} 12... Nf8 {[%clk
0:02:24.4]} 13. dxc6 {[%clk 0:01:25.7]} 13... bxc6 {[%clk 0:02:24.7]} 14. Nd4
{[%clk 0:01:26.9]} 14... Bd7 {[%clk 0:02:19.3]} 15. Nf5 {[%clk 0:01:17.9]} 15...
Be5 {[%clk 0:02:16.5]} 16. Rb1 {[%clk 0:00:57.3]} 16... e6 {[%clk 0:02:01.3]}
17. Nd4 {[%clk 0:00:52]} 17... c5 {[%clk 0:01:49.5]} 18. Nf3 {[%clk 0:00:48.8]}
18... Bg7 {[%clk 0:01:34.3]} 19. e5 {[%clk 0:00:48]} 19... dxe5 {[%clk
0:01:25.1]} 20. Ne4 {[%clk 0:00:47.1]} 20... f5 {[%clk 0:01:09.8]} 21. Nd6+
{[%clk 0:00:43.4]} 21... Ke7 {[%clk 0:01:10.1]} 22. Nb7 {[%clk 0:00:44.4]} 22...
Qc7 {[%clk 0:01:04.3]} 23. Bxc5+ {[%clk 0:00:44]} 23... Kf6 {[%clk 0:00:58.2]}
24. Nxe5 {[%clk 0:00:22.4]} 24... Qxe5 {[%clk 0:00:48.9]} 25. Bxf5 {[%clk
0:00:20.9]} 25... Qxf5 {[%clk 0:00:36.7]} 26. Rxf5+ {[%clk 0:00:17.8]} 26...
exf5 {[%clk 0:00:38]} 27. Bxf8 {[%clk 0:00:18.6]} 27... Rxf8 {[%clk 0:00:32.8]}
28. Qxd7 {[%clk 0:00:18.6]} 28... Kg6 {[%clk 0:00:33.6]} 29. Nd6 {[%clk
0:00:13.7]} 29... h5 {[%clk 0:00:25.8]} 30. Rf1 {[%clk 0:00:13.1]} 30... Nh6
{[%clk 0:00:25.3]} 31. c5 {[%clk 0:00:12.9]} 31... Rd8 {[%clk 0:00:21.9]} 32.
Qe6+ {[%clk 0:00:13.2]} 32... Kh7 {[%clk 0:00:19.1]} 33. c6 {[%clk 0:00:14.5]}
33... Rhf8 {[%clk 0:00:19.5]} 34. c7 {[%clk 0:00:15.2]} 34... Rxd6 {[%clk
0:00:20.3]} 35. Qxd6 {[%clk 0:00:16]} 35... Ng4 {[%clk 0:00:20.6]} 36. Qxf8
{[%clk 0:00:15.8]} 36... Bxf8 {[%clk 0:00:21.1]} 37. c8=Q {[%clk 0:00:17]} 37...
Bg7 {[%clk 0:00:23]} 38. Qxf5+ {[%clk 0:00:17.7]} 38... Kh6 {[%clk 0:00:23.8]}
39. Qxg4 {[%clk 0:00:18.8]} 39... hxg4 {[%clk 0:00:24.4]} 40. b3 {[%clk
0:00:20.1]} 1-0

[Event "*** Titled Tuesday Blitz"]
[Site "Chess.com"]
[Date "2018.08.07"]
[Round "10"]
[White "oskariot"]
[Black "FairChess_on_YouTube"]
[Result "0-1"]
[WhiteElo "2486"]
[BlackElo "2949"]
[TimeControl "180+2"]
[EndTime "15:20:19 PDT"]
[Termination "FairChess_on_YouTube won by resignation"]

1. e4 {[%clk 0:02:55.1]} 1... Na6 {[%clk 0:02:59.7]} 2. d4 {[%clk 0:02:55.9]}
2... Nh6 {[%clk 0:03:00]} 3. Nf3 {[%clk 0:02:56.8]} 3... d5 {[%clk 0:03:00.1]}
4. exd5 {[%clk 0:02:56.8]} 4... Qxd5 {[%clk 0:03:01]} 5. c4 {[%clk 0:02:55.6]}
5... Qd8 {[%clk 0:02:59.4]} 6. Be2 {[%clk 0:02:56.6]} 6... g6 {[%clk 0:02:58.7]}
7. O-O {[%clk 0:02:57]} 7... Bg7 {[%clk 0:02:59.2]} 8. Nc3 {[%clk 0:02:57.6]}
8... O-O {[%clk 0:02:58.7]} 9. Bg5 {[%clk 0:02:39.3]} 9... Nf5 {[%clk
0:02:56.4]} 10. d5 {[%clk 0:02:24.3]} 10... h6 {[%clk 0:02:57]} 11. Bf4 {[%clk
0:02:20.5]} 11... c6 {[%clk 0:02:53.2]} 12. dxc6 {[%clk 0:02:05.7]} 12... bxc6
{[%clk 0:02:52.3]} 13. Qa4 {[%clk 0:01:51.3]} 13... Qb6 {[%clk 0:02:47.8]} 14.
Qa3 {[%clk 0:01:40.4]} 14... Nb4 {[%clk 0:02:42.3]} 15. Na4 {[%clk 0:01:36]}
15... Qa5 {[%clk 0:02:42.9]} 16. Bd2 {[%clk 0:01:31.9]} 16... c5 {[%clk
0:02:36.1]} 17. Qb3 {[%clk 0:00:56.9]} 17... Rd8 {[%clk 0:02:17.4]} 18. a3
{[%clk 0:00:49.8]} 18... Rxd2 {[%clk 0:02:17.5]} 19. axb4 {[%clk 0:00:40.1]}
19... Qd8 {[%clk 0:02:18.4]} 20. Nxd2 {[%clk 0:00:39.1]} 20... Qxd2 {[%clk
0:02:20.2]} 21. Qd3 {[%clk 0:00:13.9]} 21... Qxb4 {[%clk 0:02:15.4]} 22. Bf3
{[%clk 0:00:11.1]} 22... Rb8 {[%clk 0:02:15.6]} 23. Qd8+ {[%clk 0:00:10.8]}
23... Kh7 {[%clk 0:02:16]} 24. Qc7 {[%clk 0:00:11.7]} 24... Bd4 {[%clk
0:01:57.2]} 25. Qxa7 {[%clk 0:00:10.5]} 25... Be6 {[%clk 0:01:56.6]} 26. Bd5
{[%clk 0:00:07.7]} 26... Bxd5 {[%clk 0:01:54.3]} 27. cxd5 {[%clk 0:00:09.6]}
27... c4 {[%clk 0:01:50.3]} 28. Qc7 {[%clk 0:00:10.7]} 28... Bf6 {[%clk
0:01:45.9]} 29. Rfc1 {[%clk 0:00:08.1]} 29... Nd6 {[%clk 0:01:46.6]} 30. Qc5
{[%clk 0:00:08.3]} 30... Qxc5 {[%clk 0:01:41.9]} 31. Nxc5 {[%clk 0:00:09.2]}
31... Bxb2 {[%clk 0:01:43.4]} 32. Rab1 {[%clk 0:00:07.8]} 32... Rb5 {[%clk
0:01:43.4]} 33. Rc2 {[%clk 0:00:07.1]} 33... Rxc5 {[%clk 0:01:43.9]} 34. Rbxb2
{[%clk 0:00:07.3]} 34... Rxd5 {[%clk 0:01:44.3]} 35. Rb1 {[%clk 0:00:08.1]}
35... g5 {[%clk 0:01:42]} 36. Re1 {[%clk 0:00:09.4]} 36... Kg6 {[%clk
0:01:41.8]} 37. f3 {[%clk 0:00:11.3]} 37... e6 {[%clk 0:01:40.4]} 38. Kf2 {[%clk
0:00:12.6]} 38... h5 {[%clk 0:01:41.6]} 39. Ra1 {[%clk 0:00:13.4]} 39... g4
{[%clk 0:01:40.4]} 40. Ra4 {[%clk 0:00:12.6]} 40... Kf5 {[%clk 0:01:37]} 41.
Rca2 {[%clk 0:00:09]} 41... e5 {[%clk 0:01:34]} 42. Ra5 {[%clk 0:00:08.9]} 42...
Rd3 {[%clk 0:01:34.8]} 43. Re2 {[%clk 0:00:08.3]} 43... f6 {[%clk 0:01:35.8]}
44. Rc5 {[%clk 0:00:09.1]} 44... gxf3 {[%clk 0:01:34.8]} 45. gxf3 {[%clk
0:00:11]} 45... Kf4 {[%clk 0:01:35.7]} 46. Rxc4+ {[%clk 0:00:08]} 46... Nxc4
{[%clk 0:01:36.6]} 47. Re4+ {[%clk 0:00:09.9]} 47... Kg5 {[%clk 0:01:36.1]} 48.
Rxc4 {[%clk 0:00:11.8]} 48... Rd4 {[%clk 0:01:34.3]} 49. Rc8 {[%clk 0:00:11.6]}
49... Kf4 {[%clk 0:01:33.8]} 50. Rf8 {[%clk 0:00:09]} 50... f5 {[%clk
0:01:32.2]} 51. Rh8 {[%clk 0:00:06.2]} 51... Rd2+ {[%clk 0:01:32.3]} 0-1